[Event "FIDE CB Open 2022"]
[Site "Ceske Budejovice"]
[Date "2022.07.07"]
[Round "7.8"]
[White "Heimisson, Hilmir Freyr"]
[Black "Mostbauer, Maximilian"]
[Result "1/2-1/2"]
[ECO "D79"]
[WhiteElo "2281"]
[BlackElo "2192"]
[Annotator "RC"]
[PlyCount "111"]
[EventDate "2022.07.01"]
[EventType "swiss"]
[EventCountry "CZE"]
[SourceTitle "playchess.com"]
[Source "ChessBase"]
[SourceQuality "1"]
[TimeControl "40/5400+30:1800+30"]

1. g3 {[%emt 0:00:04]} g6 {[%emt 0:00:21]} 2. Bg2 {[%emt 0:00:11]} Bg7 {[%emt 0:00:05]} 3. d4 {[%emt 0:00:57]} Nf6 {[%emt 0:00:26]} 4. Nf3 {[%emt 0:00:55]} O-O {[%emt 0:00:12]} 5. O-O {[%emt 0:00:11]} d5 {[%emt 0:04:03]} 6. c4 {[%emt 0:00:11]} c6 {[%emt 0:00:09]} 7. cxd5 {[%emt 0:00:09]} cxd5 {[%emt 0:00:05]} 8. Nc3 {[%emt 0:00:08]} e6 {[%emt 0:00:08]} 9. Bf4 {[%emt 0:01:36]} Nc6 {[%emt 0:09:00]} 10. Rc1 {[%emt 0:00:11]} Ne4 {[%emt 0:04:53]} 11. Qd3 {[%emt 0:22:38]} g5 {[%emt 0:09:38]} 12. Be3 {[%emt 0:08:16]} f5 {[%emt 0:01:18]} 13. Rfd1 {[%emt 0:00:52]} Bd7 {[%emt 0:08:35]} 14. Ne5 {[%emt 0:09:34]} Bxe5 {[%emt 0:24:21]} 15. dxe5 {[%emt 0:00:15]} Nxe5 {[%emt 0:00:32]} 16. Qb1 {[%emt 0:00:43]} Nc6 {[%emt 0:16:54]} 17. f3 {[%emt 0:08:12]} Nxc3 {[%emt 0:01:10]} 18. bxc3 {[%emt 0:00:19]} Na5 {[%emt 0:02:07]} 19. Bc5 {[%emt 0:06:16]} Rf7 {[%emt 0:00:42]} 20. e4 {[%emt 0:01:25]} Qc7 {[%emt 0:00:25]} 21. Bf2 {[%emt 0:07:36]} fxe4 {[%emt 0:00:38]} 22. Rd4 {[%emt 0:16:28]} Nc6 {[%emt 0:01:57]} 23. fxe4 {[%emt 0:00:57]} Nxd4 {[%emt 0:01:19]} 24. cxd4 {[%emt 0:00:37]} Bc6 {[%emt 0:04:21]} 25. e5 {[%emt 0:01:44]} Qe7 {[%emt 0:05:00]} 26. Be3 {[%emt 0:01:12]} a6 {[%emt 0:00:46]} 27. Qb2 {[%emt 0:00:43]} Raf8 {[%emt 0:00:41]} 28. Qd2 {[%emt 0:00:23]} Rg7 {[%emt 0:01:05]} 29. Bh3 {[%emt 0:01:15]} Be8 {[%emt 0:00:49]} 30. Qa5 {[%emt 0:04:35]} Bg6 {[%emt 0:00:51]} 31. Bd2 {[%emt 0:00:05]} Re8 {[%emt 0:01:00]} 32. Bb4 {[%emt 0:00:54]} Qd7 {[%emt 0:00:35]} 33. Bd6 {[%emt 0:01:20]} Rc8 {[%emt 0:00:48]} 34. Bc5 {[%emt 0:01:50]} Rf7 {[%emt 0:00:48]} 35. Re1 {[%emt 0:01:20]} Bf5 {[%emt 0:00:19]} 36. Bf1 {[%emt 0:00:16]} Be4 {[%emt 0:00:51]} 37. Qd2 {[%emt 0:00:12]} Qd8 {[%emt 0:00:39]} 38. Qb4 {[%emt 0:01:54]} Kg7 {[%emt 0:01:07]} 39. a4 {[%emt 0:00:46]} Bg6 {[%emt 0:00:46]} 40. a5 {[%emt 0:00:25]} h6 {[%emt 0:00:26]} 41. Rc1 {[%emt 0:31:43]} g4 {[%emt 0:07:31]} 42. Qe1 {[%emt 0:00:00]} Qg5 {[%emt 0:02:02]} 43. Bg2 {[%emt 0:00:00]} Be4 {[%emt 0:02:14]} 44. Bxe4 {[%emt 0:00:00]} dxe4 {[%emt 0:00:07]} 45. Rc2 {[%emt 0:00:00]} e3 {[%emt 0:08:14]} 46. Rc3 {[%emt 0:00:00]} Qg6 {[%emt 0:05:38]} 47. Rxe3 {[%emt 0:00:00]} Rf5 {[%emt 0:02:25]} 48. Rb3 {[%emt 0:00:00]} Rc7 {[%emt 0:00:31]} 49. Rb1 {[%emt 0:00:00]} Rcf7 {[%emt 0:00:57]} 50. Rc1 {[%emt 0:00:47]} Rf3 {[%emt 0:00:24]} 51. d5 {[%emt 0:01:12]} exd5 {[%emt 0:00:48]} 52. e6 {[%emt 0:03:31]} Rf1+ {[%emt 0:00:20]} 53. Qxf1 {[%emt 0:00:11]} Rxf1+ {[%emt 0:00:04]} 54. Rxf1 {[%emt 0:00:38]} Qxe6 {[%emt 0:00:11]} 55. Bb6 {[%emt 0:00:13]} Qe4 {[%emt 0:00:58]} 56. Rf4 {[%emt 0:00:15]} 1/2-1/2

[Event "FIDE CB Open 2022"]
[Site "Ceske Budejovice"]
[Date "2022.07.07"]
[Round "7.9"]
[White "Cuhra, Martin"]
[Black "Walek, Petr"]
[Result "1-0"]
[ECO "A25"]
[WhiteElo "2225"]
[BlackElo "2237"]
[Annotator "RC"]
[PlyCount "101"]
[EventDate "2022.07.01"]
[EventType "swiss"]
[EventCountry "CZE"]
[SourceTitle "playchess.com"]
[Source "ChessBase"]
[SourceQuality "1"]
[TimeControl "40/5400+30:1800+30"]

1. c4 {[%emt 0:01:20]} e5 {[%emt 0:00:17]} 2. g3 {[%emt 0:00:29]} Nc6 {[%emt 0:00:15]} 3. Bg2 {[%emt 0:00:12]} g6 {[%emt 0:00:18]} 4. Nc3 {[%emt 0:00:26]} Bg7 {[%emt 0:00:39]} 5. e3 {[%emt 0:00:16]} f5 {[%emt 0:00:13]} 6. Nge2 {[%emt 0:00:21]} Nf6 {[%emt 0:06:48]} 7. O-O {[%emt 0:00:38]} d6 {[%emt 0:05:00]} 8. d4 {[%emt 0:01:37]} e4 {[%emt 0:02:17]} 9. b4 {[%emt 0:02:33]} O-O {[%emt 0:19:40]} 10. b5 {[%emt 0:04:42]} Ne7 {[%emt 0:00:36]} 11. a4 {[%emt 0:05:01]} g5 {[%emt 0:11:55]} 12. a5 {[%emt 0:13:46]} Ng6 {[%emt 0:07:32]} 13. f3 {[%emt 0:03:15]} Qe7 {[%emt 0:08:51]} 14. Qc2 {[%emt 0:11:30]} exf3 {[%emt 0:03:33]} 15. Bxf3 {[%emt 0:00:26]} Rb8 {[%emt 0:01:25]} 16. Bd2 {[%emt 0:03:49]} Bd7 {[%emt 0:04:13]} 17. a6 {[%emt 0:10:33]} b6 {[%emt 0:00:22]} 18. Rae1 {[%emt 0:00:29]} Rbe8 {[%emt 0:02:19]} 19. Nc1 {[%emt 0:05:01]} Be6 {[%emt 0:06:01]} 20. Nd5 {[%emt 0:04:58]} Bxd5 {[%emt 0:07:14]} 21. cxd5 {[%emt 0:01:01]} Qd7 {[%emt 0:04:25]} 22. Qc4 {[%emt 0:05:13]} f4 {[%emt 0:01:04]} 23. exf4 {[%emt 0:05:34]} gxf4 {[%emt 0:01:14]} 24. Re6 {[%emt 0:00:39]} Rxe6 {[%emt 0:02:39]} 25. dxe6 {[%emt 0:00:03]} d5 {[%emt 0:00:07]} 26. Qe2 {[%emt 0:07:29]} Qd6 {[%emt 0:01:03]} 27. Nd3 {[%emt 0:00:00]} Ne4 {[%emt 0:02:16]} 28. Bxe4 {[%emt 0:02:53]} dxe4 {[%emt 0:00:35]} 29. Qxe4 {[%emt 0:03:41]} Qxd4+ {[%emt 0:00:28]} 30. Qxd4 {[%emt 0:00:05]} Bxd4+ {[%emt 0:00:04]} 31. Kg2 {[%emt 0:00:19]} fxg3 {[%emt 0:00:47]} 32. hxg3 {[%emt 0:00:19]} Rxf1 {[%emt 0:01:30]} 33. Kxf1 {[%emt 0:00:02]} Kf8 {[%emt 0:00:44]} 34. Nb4 {[%emt 0:01:09]} Ne7 {[%emt 0:00:27]} 35. Bg5 {[%emt 0:00:24]} Nc8 {[%emt 0:00:12]} 36. Nc6 {[%emt 0:00:57]} Bc5 {[%emt 0:00:38]} 37. Bf6 {[%emt 0:01:56]} h5 {[%emt 0:00:44]} 38. Kg2 {[%emt 0:03:02]} Bd6 {[%emt 0:01:00]} 39. Kf3 {[%emt 0:00:15]} Ke8 {[%emt 0:00:00]} 40. Bh4 {[%emt 0:00:46]} Kf8 {[%emt 0:00:32]} 41. Ke4 {[%emt 0:31:45]} Ba3 {[%emt 0:02:38]} 42. Ke5 {[%emt 0:00:00]} Bb2+ {[%emt 0:00:44]} 43. Kd5 {[%emt 0:00:00]} Ke8 {[%emt 0:04:49]} 44. Bg5 {[%emt 0:00:00]} Ba3 {[%emt 0:00:50]} 45. Bf4 {[%emt 0:00:00]} Bd6 {[%emt 0:00:11]} 46. Bxd6 {[%emt 0:00:00]} cxd6 {[%emt 0:00:30]} 47. Nd4 {[%emt 0:00:00]} Ke7 {[%emt 0:01:42]} 48. Kc6 {[%emt 0:00:00]} d5 {[%emt 0:01:55]} 49. Kxd5 {[%emt 0:00:00]} Ke8 {[%emt 0:00:46]} 50. Nf5 {[%emt 0:00:00]} Kd8 {[%emt 0:00:28]} 51. Kc6 {[%emt 0:00:00]} 1-0

[Event "FIDE CB Open 2022"]
[Site "Ceske Budejovice"]
[Date "2022.07.07"]
[Round "7.10"]
[White "Vybiral, Zdenek"]
[Black "Matras, Ondrej"]
[Result "1/2-1/2"]
[ECO "E92"]
[WhiteElo "2143"]
[BlackElo "2229"]
[Annotator "RC"]
[PlyCount "167"]
[EventDate "2022.07.01"]
[EventType "swiss"]
[EventCountry "CZE"]
[SourceTitle "playchess.com"]
[Source "ChessBase"]
[SourceQuality "1"]
[TimeControl "40/5400+30:1800+30"]

1. c4 {[%emt 0:00:06]} g6 {[%emt 0:05:00]} 2. d4 {[%emt 0:00:57]} Nf6 {[%emt 0:00:27]} 3. Nc3 {[%emt 0:00:43]} Bg7 {[%emt 0:00:02]} 4. e4 {[%emt 0:00:07]} d6 {[%emt 0:00:02]} 5. Nf3 {[%emt 0:00:40]} O-O {[%emt 0:00:06]} 6. Be2 {[%emt 0:00:02]} e5 {[%emt 0:00:50]} 7. Be3 {[%emt 0:00:06]} Nc6 {[%emt 0:00:45]} 8. d5 {[%emt 0:00:10]} Ne7 {[%emt 0:00:02]} 9. Nd2 {[%emt 0:00:06]} Nd7 {[%emt 0:01:02]} 10. b4 {[%emt 0:00:16]} f5 {[%emt 0:00:40]} 11. f3 {[%emt 0:00:12]} a5 {[%emt 0:01:49]} 12. a3 {[%emt 0:02:02]} b6 {[%emt 0:02:42]} 13. Nb3 {[%emt 0:10:48]} axb4 {[%emt 0:14:56]} 14. axb4 {[%emt 0:00:10]} Rxa1 {[%emt 0:00:03]} 15. Qxa1 {[%emt 0:01:30]} c5 {[%emt 0:02:09]} 16. bxc5 {[%emt 0:08:45]} Nxc5 {[%emt 0:02:02]} 17. Nxc5 {[%emt 0:00:06]} bxc5 {[%emt 0:00:09]} 18. Nb5 {[%emt 0:05:10]} fxe4 {[%emt 0:02:25]} 19. fxe4 {[%emt 0:00:09]} Kh8 {[%emt 0:08:42]} 20. Rf1 {[%emt 0:05:29]} Ng8 {[%emt 0:00:47]} 21. Rxf8 {[%emt 0:00:09]} Bxf8 {[%emt 0:00:55]} 22. Qa8 {[%emt 0:00:41]} Be7 {[%emt 0:22:41]} 23. Bf3 {[%emt 0:04:50]} Qf8 {[%emt 0:01:52]} 24. Ke2 {[%emt 0:08:50]} Bd7 {[%emt 0:06:18]} 25. Qa7 {[%emt 0:08:25]} Qc8 {[%emt 0:14:12]} 26. Qb6 {[%emt 0:08:03]} Qf8 {[%emt 0:00:29]} 27. Qc7 {[%emt 0:03:12]} Qc8 {[%emt 0:00:47]} 28. Qxc8 {[%emt 0:19:48]} Bxc8 {[%emt 0:00:02]} 29. g4 {[%emt 0:00:13]} Nf6 {[%emt 0:01:54]} 30. g5 {[%emt 0:02:26]} Ne8 {[%emt 0:00:31]} 31. Kd3 {[%emt 0:00:40]} Kg8 {[%emt 0:01:18]} 32. Bd1 {[%emt 0:00:42]} Kf8 {[%emt 0:01:09]} 33. h4 {[%emt 0:00:40]} Bd8 {[%emt 0:00:57]} 34. Nxd6 {[%emt 0:01:05]} Nxd6 {[%emt 0:00:04]} 35. Bxc5 {[%emt 0:00:01]} Ke7 {[%emt 0:00:45]} 36. Bb4 {[%emt 0:00:46]} Ba6 {[%emt 0:01:24]} 37. Bb3 {[%emt 0:01:13]} Kd7 {[%emt 0:01:56]} 38. Ba4+ {[%emt 0:05:06]} Kc7 {[%emt 0:00:12]} 39. Bb3 {[%emt 0:00:21]} Kd7 {[%emt 0:07:12]} 40. Bc3 {[%emt 0:03:01]} Bc7 {[%emt 0:00:39]} 41. Ba4+ {[%emt 0:11:16]} Ke7 {[%emt 0:01:45]} 42. Bxe5 {[%emt 0:10:48]} Bxc4+ {[%emt 0:01:16]} 43. Kd4 {[%emt 0:00:52]} Bb6+ {[%emt 0:05:26]} 44. Kc3 {[%emt 0:00:07]} Be2 {[%emt 0:03:35]} 45. Bf6+ {[%emt 0:00:14]} Kf7 {[%emt 0:01:29]} 46. Bc2 {[%emt 0:03:25]} Bf3 {[%emt 0:13:59]} 47. e5 {[%emt 0:00:23]} Ne4+ {[%emt 0:00:53]} 48. Bxe4 {[%emt 0:00:15]} Bxe4 {[%emt 0:00:01]} 49. e6+ {[%emt 0:01:44]} Ke8 {[%emt 0:00:30]} 50. d6 {[%emt 0:00:22]} Bc6 {[%emt 0:00:15]} 51. Kd3 {[%emt 0:02:19]} Bf2 {[%emt 0:00:45]} 52. h5 {[%emt 0:00:56]} gxh5 {[%emt 0:00:14]} 53. Ke2 {[%emt 0:00:17]} Bc5 {[%emt 0:01:51]} 54. d7+ {[%emt 0:00:06]} Bxd7 {[%emt 0:00:02]} 55. exd7+ {[%emt 0:00:03]} Kxd7 {[%emt 0:00:05]} 56. Kf3 {[%emt 0:00:18]} Ke6 {[%emt 0:00:20]} 57. Kg3 {[%emt 0:00:17]} Kf5 {[%emt 0:00:31]} 58. Kh4 {[%emt 0:00:07]} Kg6 {[%emt 0:00:10]} 59. Bd8 {[%emt 0:00:58]} Bb4 {[%emt 0:00:47]} 60. Kh3 {[%emt 0:00:56]} Be1 {[%emt 0:00:46]} 61. Be7 {[%emt 0:00:20]} Kf5 {[%emt 0:00:30]} 62. Bd8 {[%emt 0:00:19]} Bd2 {[%emt 0:01:10]} 63. Kh4 {[%emt 0:00:41]} Kg6 {[%emt 0:00:02]} 64. Be7 {[%emt 0:00:11]} Bf4 {[%emt 0:00:14]} 65. Bd8 {[%emt 0:00:06]} Bd6 {[%emt 0:00:28]} 66. Kh3 {[%emt 0:00:54]} Bc5 {[%emt 0:00:20]} 67. Kh4 {[%emt 0:00:15]} Be3 {[%emt 0:00:26]} 68. Be7 {[%emt 0:00:07]} Bf2+ {[%emt 0:00:08]} 69. Kh3 {[%emt 0:00:05]} Kf7 {[%emt 0:00:10]} 70. Bd8 {[%emt 0:00:18]} Be1 {[%emt 0:00:13]} 71. Kg2 {[%emt 0:00:28]} Ke6 {[%emt 0:01:12]} 72. Kh3 {[%emt 0:00:06]} Kf5 {[%emt 0:00:45]} 73. Be7 {[%emt 0:00:14]} Ba5 {[%emt 0:00:22]} 74. Kh4 {[%emt 0:00:18]} Kg6 {[%emt 0:00:01]} 75. Kh3 {[%emt 0:00:08]} Kf7 {[%emt 0:00:12]} 76. Bf6 {[%emt 0:00:36]} Bb6 {[%emt 0:01:04]} 77. Kh4 {[%emt 0:00:12]} Kg6 {[%emt 0:00:05]} 78. Be7 {[%emt 0:00:06]} Ba5 {[%emt 0:00:26]} 79. Kh3 {[%emt 0:00:36]} Kf7 {[%emt 0:00:28]} 80. Bf6 {[%emt 0:00:44]} Bc7 {[%emt 0:00:02]} 81. Kh4 {[%emt 0:00:10]} Kg6 {[%emt 0:00:05]} 82. Be7 {[%emt 0:00:03]} Ba5 {[%emt 0:00:47]} 83. Kh3 {[%emt 0:00:25]} Kf7 {[%emt 0:00:13]} 84. Bf6 {[%emt 0:00:02]} 1/2-1/2

[Event "FIDE CB Open 2022"]
[Site "Ceske Budejovice"]
[Date "2022.07.07"]
[Round "7.11"]
[White "Kula, Dominik"]
[Black "Puncochar, Jiri"]
[Result "1/2-1/2"]
[ECO "E60"]
[WhiteElo "2229"]
[BlackElo "2020"]
[Annotator "RC"]
[PlyCount "124"]
[EventDate "2022.07.01"]
[EventType "swiss"]
[EventCountry "CZE"]
[SourceTitle "playchess.com"]
[Source "ChessBase"]
[SourceQuality "1"]
[TimeControl "40/5400+30:1800+30"]

1. Nf3 {[%emt 0:00:05]} Nf6 {[%emt 0:00:08]} 2. b3 {[%emt 0:00:06]} g6 {[%emt 0:00:47]} 3. Bb2 {[%emt 0:00:05]} Bg7 {[%emt 0:00:04]} 4. c4 {[%emt 0:00:31]} O-O {[%emt 0:01:44]} 5. g3 {[%emt 0:00:11]} d6 {[%emt 0:00:54]} 6. Bg2 {[%emt 0:00:49]} c5 {[%emt 0:01:05]} 7. O-O {[%emt 0:06:07]} Nc6 {[%emt 0:01:25]} 8. d4 {[%emt 0:03:56]} cxd4 {[%emt 0:01:03]} 9. Nxd4 {[%emt 0:00:24]} Bd7 {[%emt 0:01:10]} 10. Nc3 {[%emt 0:02:20]} Rb8 {[%emt 0:06:46]} 11. Rc1 {[%emt 0:08:22]} a6 {[%emt 0:07:37]} 12. e4 {[%emt 0:01:14]} Nxd4 {[%emt 0:10:35]} 13. Qxd4 {[%emt 0:00:07]} Ne8 {[%emt 0:00:15]} 14. Qd2 {[%emt 0:04:01]} Nc7 {[%emt 0:01:21]} 15. Nd5 {[%emt 0:08:52]} Bxb2 {[%emt 0:01:09]} 16. Qxb2 {[%emt 0:00:09]} Nxd5 {[%emt 0:04:01]} 17. exd5 {[%emt 0:00:05]} Rc8 {[%emt 0:02:37]} 18. Qd4 {[%emt 0:03:28]} Qa5 {[%emt 0:02:07]} 19. Rfe1 {[%emt 0:01:05]} Rfe8 {[%emt 0:01:54]} 20. Qh4 {[%emt 0:05:23]} Qd8 {[%emt 0:06:00]} 21. Qh6 {[%emt 0:05:32]} f6 {[%emt 0:09:09]} 22. Re4 {[%emt 0:09:17]} Rf8 {[%emt 0:00:36]} 23. Qe3 {[%emt 0:02:22]} Rf7 {[%emt 0:01:06]} 24. c5 {[%emt 0:00:42]} Bf5 {[%emt 0:05:05]} 25. Rb4 {[%emt 0:03:42]} Rxc5 {[%emt 0:05:06]} 26. Rxc5 {[%emt 0:01:48]} dxc5 {[%emt 0:00:05]} 27. Qxc5 {[%emt 0:04:43]} Qd6 {[%emt 0:03:16]} 28. Qd4 {[%emt 0:00:37]} b5 {[%emt 0:02:04]} 29. a4 {[%emt 0:01:00]} Bd7 {[%emt 0:00:17]} 30. axb5 {[%emt 0:02:35]} axb5 {[%emt 0:01:58]} 31. Bf1 {[%emt 0:00:40]} Rf8 {[%emt 0:02:28]} 32. h4 {[%emt 0:02:13]} Kg7 {[%emt 0:00:57]} 33. h5 {[%emt 0:01:49]} Rb8 {[%emt 0:00:39]} 34. Bd3 {[%emt 0:01:12]} Rc8 {[%emt 0:07:02]} 35. Be4 {[%emt 0:04:05]} Qc5 {[%emt 0:02:19]} 36. Qxc5 {[%emt 0:01:23]} Rxc5 {[%emt 0:00:02]} 37. hxg6 {[%emt 0:00:17]} hxg6 {[%emt 0:00:08]} 38. Rd4 {[%emt 0:00:08]} Rc1+ {[%emt 0:02:06]} 39. Kg2 {[%emt 0:00:30]} f5 {[%emt 0:00:46]} 40. Bf3 {[%emt 0:02:50]} Kf6 {[%emt 0:00:32]} 41. Rd3 {[%emt 0:32:43]} Ke5 {[%emt 0:35:44]} 42. Be2 {[%emt 0:02:28]} g5 {[%emt 0:00:25]} 43. Re3+ {[%emt 0:00:38]} Kxd5 {[%emt 0:02:33]} 44. Rxe7 {[%emt 0:00:21]} Kd6 {[%emt 0:00:18]} 45. Re3 {[%emt 0:01:04]} Bc6+ {[%emt 0:00:00]} 46. Bf3 {[%emt 0:00:00]} Bxf3+ {[%emt 0:00:00]} 47. Kxf3 {[%emt 0:00:00]} b4 {[%emt 0:00:00]} 48. Ke2 {[%emt 0:00:00]} Rc2+ {[%emt 0:00:00]} 49. Ke1 {[%emt 0:00:00]} Kd5 {[%emt 0:00:00]} 50. f4 {[%emt 0:00:00]} gxf4 {[%emt 0:00:00]} 51. gxf4 {[%emt 0:00:00]} Kd4 {[%emt 0:00:00]} 52. Re5 {[%emt 0:00:00]} Rc5 {[%emt 0:00:00]} 53. Re8 {[%emt 0:00:00]} Rc3 {[%emt 0:00:00]} 54. Ke2 {[%emt 0:00:00]} Rh3 {[%emt 0:02:52]} 55. Re5 {[%emt 0:00:00]} Rh2+ {[%emt 0:01:04]} 56. Kd1 {[%emt 0:00:00]} Kc3 {[%emt 0:03:15]} 57. Rxf5 {[%emt 0:00:00]} Kxb3 {[%emt 0:00:14]} 58. Kc1 {[%emt 0:00:00]} Rf2 {[%emt 0:00:26]} 59. Rf8 {[%emt 0:00:00]} Kc3 {[%emt 0:00:38]} 60. Rc8+ {[%emt 0:00:00]} Kd3 {[%emt 0:00:22]} 61. f5 {[%emt 0:00:00]} Rxf5 {[%emt 0:00:14]} 62. Kb2 {[%emt 0:00:00]} Rb5 {[%emt 0:00:37]} 1/2-1/2

[Event "FIDE CB Open 2022"]
[Site "Ceske Budejovice"]
[Date "2022.07.07"]
[Round "7.12"]
[White "Johannsson, Birkir Isak"]
[Black "Simek, Petr"]
[Result "1-0"]
[ECO "A34"]
[WhiteElo "2131"]
[BlackElo "2348"]
[Annotator "RC"]
[PlyCount "63"]
[EventDate "2022.07.01"]
[EventType "swiss"]
[EventCountry "CZE"]
[SourceTitle "playchess.com"]
[Source "ChessBase"]
[SourceQuality "1"]
[TimeControl "40/5400+30:1800+30"]

1. Nf3 {[%emt 0:00:35]} c5 {[%emt 0:01:04]} 2. c4 {[%emt 0:00:58]} Nf6 {[%emt 0:00:06]} 3. Nc3 {[%emt 0:00:21]} e6 {[%emt 0:00:28]} 4. g3 {[%emt 0:02:11]} Nc6 {[%emt 0:00:05]} 5. Bg2 {[%emt 0:00:06]} Qb6 {[%emt 0:00:05]} 6. e3 {[%emt 0:11:21]} Be7 {[%emt 0:02:10]} 7. O-O {[%emt 0:01:19]} O-O {[%emt 0:00:24]} 8. d4 {[%emt 0:00:51]} cxd4 {[%emt 0:00:54]} 9. exd4 {[%emt 0:02:46]} d5 {[%emt 0:00:07]} 10. c5 {[%emt 0:05:38]} Qa6 {[%emt 0:00:19]} 11. Be3 {[%emt 0:19:14]} b6 {[%emt 0:01:05]} 12. a3 {[%emt 0:14:33]} bxc5 {[%emt 0:56:52]} 13. dxc5 {[%emt 0:00:11]} Ng4 {[%emt 0:00:05]} 14. Qd2 {[%emt 0:04:46]} Na5 {[%emt 0:01:06]} 15. Bd4 {[%emt 0:17:08]} Nb3 {[%emt 0:00:35]} 16. Qf4 {[%emt 0:00:08]} Nf6 {[%emt 0:07:32]} 17. Qe3 {[%emt 0:01:32]} Rb8 {[%emt 0:18:10]} 18. Rab1 {[%emt 0:00:57]} Qa5 {[%emt 0:06:51]} 19. Be5 {[%emt 0:01:36]} Ng4 {[%emt 0:00:00]} 20. Qf4 {[%emt 0:01:18]} Nxe5 {[%emt 0:00:00]} 21. Nxe5 {[%emt 0:02:59]} Qc7 {[%emt 0:01:11]} 22. Ng6 {[%emt 0:03:37]} Rb7 {[%emt 0:01:11]} 23. Qxc7 {[%emt 0:01:36]} Rxc7 {[%emt 0:00:01]} 24. Nxf8 {[%emt 0:00:07]} Kxf8 {[%emt 0:00:14]} 25. Rbd1 {[%emt 0:01:14]} Rxc5 {[%emt 0:00:34]} 26. Rfe1 {[%emt 0:00:16]} Bf6 {[%emt 0:00:14]} 27. Bf1 {[%emt 0:01:20]} Bd7 {[%emt 0:01:31]} 28. Ne4 {[%emt 0:01:10]} dxe4 {[%emt 0:00:59]} 29. Rxd7 {[%emt 0:00:06]} Rc2 {[%emt 0:00:31]} 30. Rxe4 {[%emt 0:00:18]} Rxb2 {[%emt 0:00:13]} 31. Rb4 {[%emt 0:01:08]} Nc5 {[%emt 0:00:37]} 32. Rxb2 {[%emt 0:00:32]} 1-0

[Event "FIDE CB Open 2022"]
[Site "Ceske Budejovice"]
[Date "2022.07.07"]
[Round "7.13"]
[White "Sudrich, Radek"]
[Black "Lacina, Adolf"]
[Result "1/2-1/2"]
[ECO "C01"]
[WhiteElo "2049"]
[BlackElo "2225"]
[Annotator "RC"]
[PlyCount "109"]
[EventDate "2022.07.01"]
[EventType "swiss"]
[EventCountry "CZE"]
[SourceTitle "playchess.com"]
[Source "ChessBase"]
[SourceQuality "1"]
[TimeControl "40/5400+30:1800+30"]

1. d4 {[%emt 0:00:03]} e6 {[%emt 0:00:37]} 2. e4 {[%emt 0:00:36]} d5 {[%emt 0:00:11]} 3. exd5 {[%emt 0:00:07]} exd5 {[%emt 0:00:09]} 4. Bd3 {[%emt 0:00:32]} c5 {[%emt 0:00:32]} 5. c3 {[%emt 0:02:46]} Nc6 {[%emt 0:00:42]} 6. Qe2+ {[%emt 0:03:18]} Be7 {[%emt 0:01:46]} 7. Nf3 {[%emt 0:02:37]} c4 {[%emt 0:02:13]} 8. Bc2 {[%emt 0:00:19]} Nf6 {[%emt 0:02:23]} 9. O-O {[%emt 0:03:26]} Bg4 {[%emt 0:00:39]} 10. b3 {[%emt 0:02:06]} cxb3 {[%emt 0:02:10]} 11. axb3 {[%emt 0:03:18]} O-O {[%emt 0:00:29]} 12. h3 {[%emt 0:03:07]} Bh5 {[%emt 0:01:00]} 13. g4 {[%emt 0:02:02]} Bg6 {[%emt 0:00:21]} 14. Bxg6 {[%emt 0:00:59]} hxg6 {[%emt 0:00:14]} 15. Nbd2 {[%emt 0:11:48]} Qc7 {[%emt 0:10:03]} 16. Qd3 {[%emt 0:04:25]} Rfe8 {[%emt 0:01:27]} 17. Re1 {[%emt 0:03:31]} Bd6 {[%emt 0:01:43]} 18. Bb2 {[%emt 0:03:25]} Bf4 {[%emt 0:03:37]} 19. Rxe8+ {[%emt 0:03:15]} Rxe8 {[%emt 0:00:10]} 20. Re1 {[%emt 0:00:27]} Rxe1+ {[%emt 0:01:39]} 21. Nxe1 {[%emt 0:00:03]} Bxd2 {[%emt 0:00:36]} 22. Qxd2 {[%emt 0:00:02]} Ne4 {[%emt 0:00:15]} 23. Qc2 {[%emt 0:03:55]} f5 {[%emt 0:02:35]} 24. c4 {[%emt 0:04:54]} Qb6 {[%emt 0:16:09]} 25. gxf5 {[%emt 0:03:12]} gxf5 {[%emt 0:10:47]} 26. cxd5 {[%emt 0:02:22]} Ne7 {[%emt 0:00:41]} 27. f3 {[%emt 0:08:22]} Nf6 {[%emt 0:05:14]} 28. Qc5 {[%emt 0:01:41]} Nexd5 {[%emt 0:04:02]} 29. Qxb6 {[%emt 0:05:05]} Nxb6 {[%emt 0:00:07]} 30. Nd3 {[%emt 0:00:29]} Nbd5 {[%emt 0:01:03]} 31. Kf2 {[%emt 0:01:06]} Kf7 {[%emt 0:01:38]} 32. Ba3 {[%emt 0:00:59]} Nd7 {[%emt 0:04:30]} 33. Bd6 {[%emt 0:06:05]} Ke6 {[%emt 0:00:37]} 34. Be5 {[%emt 0:00:46]} Nxe5 {[%emt 0:05:36]} 35. dxe5 {[%emt 0:00:21]} f4 {[%emt 0:01:02]} 36. h4 {[%emt 0:01:08]} b6 {[%emt 0:01:57]} 37. Ke2 {[%emt 0:02:28]} g6 {[%emt 0:02:26]} 38. Kd2 {[%emt 0:00:44]} Kf5 {[%emt 0:00:29]} 39. Ke2 {[%emt 0:01:04]} a5 {[%emt 0:00:48]} 40. Kd2 {[%emt 0:00:06]} b5 {[%emt 0:04:04]} 41. Ke2 {[%emt 0:33:12]} Ne7 {[%emt 0:32:50]} 42. Kd2 {[%emt 0:01:09]} Nc6 {[%emt 0:02:48]} 43. e6 {[%emt 0:00:49]} Kxe6 {[%emt 0:08:10]} 44. Nxf4+ {[%emt 0:00:12]} Kf5 {[%emt 0:00:21]} 45. Ne2 {[%emt 0:02:11]} Ke5 {[%emt 0:00:00]} 46. Ke3 {[%emt 0:00:00]} a4 {[%emt 0:00:00]} 47. bxa4 {[%emt 0:00:00]} bxa4 {[%emt 0:00:00]} 48. Kd3 {[%emt 0:00:00]} Ne7 {[%emt 0:00:00]} 49. f4+ {[%emt 0:00:00]} Kf5 {[%emt 0:00:00]} 50. Nd4+ {[%emt 0:00:00]} Kxf4 {[%emt 0:00:00]} 51. Ne6+ {[%emt 0:00:00]} Kf5 {[%emt 0:00:00]} 52. Nf8 {[%emt 0:00:00]} Nc6 {[%emt 0:00:00]} 53. Kc3 {[%emt 0:00:00]} Kf6 {[%emt 0:00:00]} 54. Kb2 {[%emt 0:00:00]} Kf7 {[%emt 0:00:00]} 55. Nxg6 {[%emt 0:00:00]} 1/2-1/2

[Event "FIDE CB Open 2022"]
[Site "Ceske Budejovice"]
[Date "2022.07.07"]
[Round "7.14"]
[White "Abdulla, Khayala"]
[Black "Simecek, Bohumil"]
[Result "1-0"]
[ECO "C12"]
[WhiteElo "2207"]
[BlackElo "2059"]
[Annotator "RC"]
[PlyCount "53"]
[EventDate "2022.07.01"]
[EventType "swiss"]
[EventCountry "CZE"]
[SourceTitle "playchess.com"]
[Source "ChessBase"]
[SourceQuality "1"]
[TimeControl "40/5400+30:1800+30"]

1. e4 {[%emt 0:01:25]} e6 {[%emt 0:00:56]} 2. d4 {[%emt 0:00:12]} d5 {[%emt 0:00:09]} 3. Nc3 {[%emt 0:01:20]} Nf6 {[%emt 0:01:29]} 4. Bg5 {[%emt 0:00:07]} Bb4 {[%emt 0:01:55]} 5. e5 {[%emt 0:01:44]} h6 {[%emt 0:00:51]} 6. Bc1 {[%emt 0:06:28]} Ne4 {[%emt 0:03:19]} 7. Qg4 {[%emt 0:00:14]} g6 {[%emt 0:03:32]} 8. Nge2 {[%emt 0:00:19]} c5 {[%emt 0:04:36]} 9. a3 {[%emt 0:00:52]} Qa5 {[%emt 0:14:43]} 10. axb4 {[%emt 0:04:14]} Qxa1 {[%emt 0:00:19]} 11. Nxd5 {[%emt 0:01:56]} h5 {[%emt 0:04:59]} 12. Nc7+ {[%emt 0:08:13]} Kd7 {[%emt 0:01:26]} 13. Qxe4 {[%emt 0:00:11]} Kxc7 {[%emt 0:00:08]} 14. bxc5 {[%emt 0:03:22]} Bd7 {[%emt 0:01:26]} 15. Qe3 {[%emt 0:23:07]} Nc6 {[%emt 0:02:58]} 16. Qd2 {[%emt 0:10:42]} b6 {[%emt 0:08:37]} 17. cxb6+ {[%emt 0:02:55]} axb6 {[%emt 0:00:12]} 18. g3 {[%emt 0:00:40]} Qa5 {[%emt 0:15:44]} 19. Nc3 {[%emt 0:07:36]} Nb4 {[%emt 0:10:31]} 20. Bg2 {[%emt 0:01:04]} Bc6 {[%emt 0:00:12]} 21. Bxc6 {[%emt 0:02:05]} Kxc6 {[%emt 0:02:55]} 22. O-O {[%emt 0:01:40]} Nd5 {[%emt 0:02:57]} 23. Qd3 {[%emt 0:00:33]} Nxc3 {[%emt 0:02:17]} 24. bxc3 {[%emt 0:00:05]} Ra7 {[%emt 0:03:15]} 25. c4 {[%emt 0:00:46]} Rd7 {[%emt 0:00:20]} 26. Bd2 {[%emt 0:01:34]} Rc8 {[%emt 0:02:41]} 27. Bxa5 {[%emt 0:00:16]} 1-0